{"text_format":"3","workbook":"xlsx","n_sheets":3,"sheets":["Отчет ежемесячного бюджета","Расходы за месяц","Дополнительные данные"],"not_rendered":{"charts":1,"external_links":1,"defined_names":4,"pivot_tables":2},"read":"whole","date_system":"1900"}

{"sheet":"Отчет ежемесячного бюджета","index":0,"n_rows":34,"n_cols":14,"rows_kept":34,"merged":[[7,1,10,1],[7,5,10,5],[7,6,10,6],[12,1,16,1],[12,5,16,5],[12,6,16,6]]}
[null,"Обзор бюджета",{"$nulls":7},"Сводка по бюджету"]
[null,"Остаток"]
[null,"Плановый остаток","(прогнозируемый минус расходы)",{"$nulls":3},{"$f":"D17-SUM(СведенияОБюджете[Плановые затраты])","v":{"v":1585,"d":"1,585 ₽"}}]
[null,"Фактический остаток ","(фактический минус расходы)",{"$nulls":3},{"$f":"D11-SUM(СведенияОБюджете[Фактические затраты])","v":{"v":1740,"d":"1,740 ₽"}}]
[null,"Разница","(фактический минус прогнозируемый)",{"$nulls":3},{"$f":"G4-G3","v":{"v":155,"d":"155 ₽"}}]
[]
[null,"Доход",{"$nulls":3},"Расходы",{"$nulls":3},"Щелкните приведенную ниже сводную таблицу правой кнопкой мыши и выберите Обновить"]
[null,"ФАКТИЧЕСКИЙ","Доход 1",{"v":5800,"d":"5,800 ₽"},null,"ФАКТИЧЕСКИЕ",{"$f":"SUM(СведенияОБюджете[Фактические затраты])","v":{"v":7860,"d":"7,860 ₽"}}]
[null,null,"Доход 2",{"v":2300,"d":"2,300 ₽"},{"$nulls":6},"Категория","Плановые затраты ","Фактические затраты ","Разница "]
[null,null,"Дополнительный доход",{"v":1500,"d":"1,500 ₽"},{"$nulls":6},"Дети",{"v":140,"d":"140 ₽"},{"v":140,"d":"140 ₽"},{"v":0,"d":"0 ₽"}]
[null,null,"Общий доход",{"$f":"SUM(D8:D10)","v":{"v":9600,"d":"9,600 ₽"}}]
[{"$nulls":10},"Домашние животные",{"v":170,"d":"170 ₽"},{"v":100,"d":"100 ₽"},{"v":70,"d":"70 ₽"}]
[null,"ПРОГНОЗИРУЕМЫЙ",{"$nulls":3},"ПРОГНОЗИРУЕМЫЕ",{"$f":"SUM(СведенияОБюджете[Плановые затраты])","v":{"v":7915,"d":"7,915 ₽"}}]
[null,null,"Доход 1",{"v":6000,"d":"6,000 ₽"},{"$nulls":6},"Еда",{"v":1100,"d":"1,100 ₽"},{"v":1320,"d":"1,320 ₽"},{"v":-220,"d":"-220 ₽"}]
[null,null,"Доход 2",{"v":1000,"d":"1,000 ₽"}]
[null,null,"Дополнительный доход",{"v":2500,"d":"2,500 ₽"},{"$nulls":6},"Жилье",{"v":2830,"d":"2,830 ₽"},{"v":2702,"d":"2,702 ₽"},{"v":128,"d":"128 ₽"}]
[null,null,"Общий доход",{"$f":"SUM(D14:D16)","v":{"v":9500,"d":"9,500 ₽"}}]
[{"$nulls":10},"Кредиты",{"v":200,"d":"200 ₽"},{"v":200,"d":"200 ₽"},{"v":0,"d":"0 ₽"}]
[]
[{"$nulls":10},"Налоги",{"v":300,"d":"300 ₽"},{"v":300,"d":"300 ₽"},{"v":0,"d":"0 ₽"}]
[]
[{"$nulls":10},"Подарки и благотворительность",{"v":100,"d":"100 ₽"},{"v":125,"d":"125 ₽"},{"v":-25,"d":"-25 ₽"}]
[]
[{"$nulls":10},"Предметы личной гигиены",{"v":150,"d":"150 ₽"},{"v":140,"d":"140 ₽"},{"v":10,"d":"10 ₽"}]
[]
[{"$nulls":10},"Развлечения",{"v":400,"d":"400 ₽"},{"v":358,"d":"358 ₽"},{"v":42,"d":"42 ₽"}]
[]
[{"$nulls":10},"Сбережения и инвестиции",{"v":200,"d":"200 ₽"},{"v":200,"d":"200 ₽"},{"v":0,"d":"0 ₽"}]
[]
[{"$nulls":10},"Страхование",{"v":900,"d":"900 ₽"},{"v":900,"d":"900 ₽"},{"v":0,"d":"0 ₽"}]
[]
[{"$nulls":10},"Транспорт",{"v":1425,"d":"1,425 ₽"},{"v":1375,"d":"1,375 ₽"},{"v":50,"d":"50 ₽"}]
[]
[{"$nulls":10},"Общий итог",{"v":7915,"d":"7,915 ₽"},{"v":7860,"d":"7,860 ₽"},{"v":55,"d":"55 ₽"}]

{"sheet":"Расходы за месяц","index":1,"n_rows":62,"n_cols":7,"rows_kept":62}
[null,"Расходы за месяц"]
[null,"Описание","Категория","Плановые затраты","Фактические затраты","Разница","Обзор фактических затрат"]
[null,"Внешкольные занятия","Дети",{"v":40,"d":"40 ₽"},{"v":40,"d":"40 ₽"},{"$f":"СведенияОБюджете[[#This Row],[Плановые затраты]]-СведенияОБюджете[[#This Row],[Фактические затраты]]","v":{"v":0,"d":"0 ₽"}},{"$f":"СведенияОБюджете[[#This Row],[Фактические затраты]]","v":{"v":40,"d":"40 ₽"}}]
[null,"Медицина","Дети",null,null,{"$f":"СведенияОБюджете[[#This Row],[Плановые затраты]]-СведенияОБюджете[[#This Row],[Фактические затраты]]","v":{"v":0,"d":"0 ₽"}},{"$f":"СведенияОБюджете[[#This Row],[Фактические затраты]]","v":{"v":0,"d":"0 ₽"}}]
[null,"Школьные принадлежности","Дети",null,null,{"$f":"СведенияОБюджете[[#This Row],[Плановые затраты]]-СведенияОБюджете[[#This Row],[Фактические затраты]]","v":{"v":0,"d":"0 ₽"}},{"$f":"СведенияОБюджете[[#This Row],[Фактические затраты]]","v":{"v":0,"d":"0 ₽"}}]
[null,"Школьное образование","Дети",{"v":100,"d":"100 ₽"},{"v":100,"d":"100 ₽"},{"$f":"СведенияОБюджете[[#This Row],[Плановые затраты]]-СведенияОБюджете[[#This Row],[Фактические затраты]]","v":{"v":0,"d":"0 ₽"}},{"$f":"СведенияОБюджете[[#This Row],[Фактические затраты]]","v":{"v":100,"d":"100 ₽"}}]
[null,"Концерты","Развлечения",{"v":50,"d":"50 ₽"},{"v":40,"d":"40 ₽"},{"$f":"СведенияОБюджете[[#This Row],[Плановые затраты]]-СведенияОБюджете[[#This Row],[Фактические затраты]]","v":{"v":10,"d":"10 ₽"}},{"$f":"СведенияОБюджете[[#This Row],[Фактические затраты]]","v":{"v":40,"d":"40 ₽"}}]
[null,"Театр","Развлечения",{"v":200,"d":"200 ₽"},{"v":150,"d":"150 ₽"},{"$f":"СведенияОБюджете[[#This Row],[Плановые затраты]]-СведенияОБюджете[[#This Row],[Фактические затраты]]","v":{"v":50,"d":"50 ₽"}},{"$f":"СведенияОБюджете[[#This Row],[Фактические затраты]]","v":{"v":150,"d":"150 ₽"}}]
[null,"Кино","Развлечения",{"v":50,"d":"50 ₽"},{"v":28,"d":"28 ₽"},{"$f":"СведенияОБюджете[[#This Row],[Плановые затраты]]-СведенияОБюджете[[#This Row],[Фактические затраты]]","v":{"v":22,"d":"22 ₽"}},{"$f":"СведенияОБюджете[[#This Row],[Фактические затраты]]","v":{"v":28,"d":"28 ₽"}}]
[null,"Музыка (компакт-диски, загрузки и т. д.)","Развлечения",{"v":50,"d":"50 ₽"},{"v":30,"d":"30 ₽"},{"$f":"СведенияОБюджете[[#This Row],[Плановые затраты]]-СведенияОБюджете[[#This Row],[Фактические затраты]]","v":{"v":20,"d":"20 ₽"}},{"$f":"СведенияОБюджете[[#This Row],[Фактические затраты]]","v":{"v":30,"d":"30 ₽"}}]
[null,"Спортивные мероприятия","Развлечения",{"v":0,"d":"0 ₽"},{"v":40,"d":"40 ₽"},{"$f":"СведенияОБюджете[[#This Row],[Плановые затраты]]-СведенияОБюджете[[#This Row],[Фактические затраты]]","v":{"v":-40,"d":"-40 ₽"}},{"$f":"СведенияОБюджете[[#This Row],[Фактические затраты]]","v":{"v":40,"d":"40 ₽"}}]
[null,"Видео (покупка)","Развлечения",{"v":20,"d":"20 ₽"},{"v":50,"d":"50 ₽"},{"$f":"СведенияОБюджете[[#This Row],[Плановые затраты]]-СведенияОБюджете[[#This Row],[Фактические затраты]]","v":{"v":-30,"d":"-30 ₽"}},{"$f":"СведенияОБюджете[[#This Row],[Фактические затраты]]","v":{"v":50,"d":"50 ₽"}}]
[null,"Видео (прокат)","Развлечения",{"v":30,"d":"30 ₽"},{"v":20,"d":"20 ₽"},{"$f":"СведенияОБюджете[[#This Row],[Плановые затраты]]-СведенияОБюджете[[#This Row],[Фактические затраты]]","v":{"v":10,"d":"10 ₽"}},{"$f":"СведенияОБюджете[[#This Row],[Фактические затраты]]","v":{"v":20,"d":"20 ₽"}}]
[null,"Рестораны","Еда",{"v":1000,"d":"1,000 ₽"},{"v":1200,"d":"1,200 ₽"},{"$f":"СведенияОБюджете[[#This Row],[Плановые затраты]]-СведенияОБюджете[[#This Row],[Фактические затраты]]","v":{"v":-200,"d":"-200 ₽"}},{"$f":"СведенияОБюджете[[#This Row],[Фактические затраты]]","v":{"v":1200,"d":"1,200 ₽"}}]
[null,"Продовольственные товары","Еда",{"v":100,"d":"100 ₽"},{"v":120,"d":"120 ₽"},{"$f":"СведенияОБюджете[[#This Row],[Плановые затраты]]-СведенияОБюджете[[#This Row],[Фактические затраты]]","v":{"v":-20,"d":"-20 ₽"}},{"$f":"СведенияОБюджете[[#This Row],[Фактические затраты]]","v":{"v":120,"d":"120 ₽"}}]
[null,"Благотворительный взнос 1","Подарки и благотворительность",{"v":75,"d":"75 ₽"},{"v":100,"d":"100 ₽"},{"$f":"СведенияОБюджете[[#This Row],[Плановые затраты]]-СведенияОБюджете[[#This Row],[Фактические затраты]]","v":{"v":-25,"d":"-25 ₽"}},{"$f":"СведенияОБюджете[[#This Row],[Фактические затраты]]","v":{"v":100,"d":"100 ₽"}}]
[null,"Благотворительный взнос 2","Подарки и благотворительность",{"v":25,"d":"25 ₽"},{"v":25,"d":"25 ₽"},{"$f":"СведенияОБюджете[[#This Row],[Плановые затраты]]-СведенияОБюджете[[#This Row],[Фактические затраты]]","v":{"v":0,"d":"0 ₽"}},{"$f":"СведенияОБюджете[[#This Row],[Фактические затраты]]","v":{"v":25,"d":"25 ₽"}}]
[null,"Подарок 1","Подарки и благотворительность",null,null,{"$f":"СведенияОБюджете[[#This Row],[Плановые затраты]]-СведенияОБюджете[[#This Row],[Фактические затраты]]","v":{"v":0,"d":"0 ₽"}},{"$f":"СведенияОБюджете[[#This Row],[Фактические затраты]]","v":{"v":0,"d":"0 ₽"}}]
[null,"Подарок 2","Подарки и благотворительность",null,null,{"$f":"СведенияОБюджете[[#This Row],[Плановые затраты]]-СведенияОБюджете[[#This Row],[Фактические затраты]]","v":{"v":0,"d":"0 ₽"}},{"$f":"СведенияОБюджете[[#This Row],[Фактические затраты]]","v":{"v":0,"d":"0 ₽"}}]
[null,"Кабельное или спутниковое ТВ","Жилье",{"v":100,"d":"100 ₽"},{"v":100,"d":"100 ₽"},{"$f":"СведенияОБюджете[[#This Row],[Плановые затраты]]-СведенияОБюджете[[#This Row],[Фактические затраты]]","v":{"v":0,"d":"0 ₽"}},{"$f":"СведенияОБюджете[[#This Row],[Фактические затраты]]","v":{"v":100,"d":"100 ₽"}}]
[null,"Электричество","Жилье",{"v":45,"d":"45 ₽"},{"v":50,"d":"50 ₽"},{"$f":"СведенияОБюджете[[#This Row],[Плановые затраты]]-СведенияОБюджете[[#This Row],[Фактические затраты]]","v":{"v":-5,"d":"-5 ₽"}},{"$f":"СведенияОБюджете[[#This Row],[Фактические затраты]]","v":{"v":50,"d":"50 ₽"}}]
[null,"Бензин","Жилье",{"v":300,"d":"300 ₽"},{"v":400,"d":"400 ₽"},{"$f":"СведенияОБюджете[[#This Row],[Плановые затраты]]-СведенияОБюджете[[#This Row],[Фактические затраты]]","v":{"v":-100,"d":"-100 ₽"}},{"$f":"СведенияОБюджете[[#This Row],[Фактические затраты]]","v":{"v":400,"d":"400 ₽"}}]
[null,"Уборка дома","Жилье",{"v":200,"d":"200 ₽"},null,{"$f":"СведенияОБюджете[[#This Row],[Плановые затраты]]-СведенияОБюджете[[#This Row],[Фактические затраты]]","v":{"v":200,"d":"200 ₽"}},{"$f":"СведенияОБюджете[[#This Row],[Фактические затраты]]","v":{"v":0,"d":"0 ₽"}}]
[null,"Обслуживание","Жилье",{"v":200,"d":"200 ₽"},{"v":150,"d":"150 ₽"},{"$f":"СведенияОБюджете[[#This Row],[Плановые затраты]]-СведенияОБюджете[[#This Row],[Фактические затраты]]","v":{"v":50,"d":"50 ₽"}},{"$f":"СведенияОБюджете[[#This Row],[Фактические затраты]]","v":{"v":150,"d":"150 ₽"}}]
[null,"Ипотека или аренда","Жилье",{"v":1700,"d":"1,700 ₽"},{"v":1700,"d":"1,700 ₽"},{"$f":"СведенияОБюджете[[#This Row],[Плановые затраты]]-СведенияОБюджете[[#This Row],[Фактические затраты]]","v":{"v":0,"d":"0 ₽"}},{"$f":"СведенияОБюджете[[#This Row],[Фактические затраты]]","v":{"v":1700,"d":"1,700 ₽"}}]
[null,"Природный газ","Жилье",null,null,{"$f":"СведенияОБюджете[[#This Row],[Плановые затраты]]-СведенияОБюджете[[#This Row],[Фактические затраты]]","v":{"v":0,"d":"0 ₽"}},{"$f":"СведенияОБюджете[[#This Row],[Фактические затраты]]","v":{"v":0,"d":"0 ₽"}}]
[null,"Интернет","Жилье",{"v":100,"d":"100 ₽"},{"v":100,"d":"100 ₽"},{"$f":"СведенияОБюджете[[#This Row],[Плановые затраты]]-СведенияОБюджете[[#This Row],[Фактические затраты]]","v":{"v":0,"d":"0 ₽"}},{"$f":"СведенияОБюджете[[#This Row],[Фактические затраты]]","v":{"v":100,"d":"100 ₽"}}]
[null,"Телефон (мобильный)","Жилье",{"v":60,"d":"60 ₽"},{"v":60,"d":"60 ₽"},{"$f":"СведенияОБюджете[[#This Row],[Плановые затраты]]-СведенияОБюджете[[#This Row],[Фактические затраты]]","v":{"v":0,"d":"0 ₽"}},{"$f":"СведенияОБюджете[[#This Row],[Фактические затраты]]","v":{"v":60,"d":"60 ₽"}}]
[null,"Телефон (домашний)","Жилье",{"v":35,"d":"35 ₽"},{"v":39,"d":"39 ₽"},{"$f":"СведенияОБюджете[[#This Row],[Плановые затраты]]-СведенияОБюджете[[#This Row],[Фактические затраты]]","v":{"v":-4,"d":"-4 ₽"}},{"$f":"СведенияОБюджете[[#This Row],[Фактические затраты]]","v":{"v":39,"d":"39 ₽"}}]
[null,"Принадлежности","Жилье",{"v":40,"d":"40 ₽"},{"v":55,"d":"55 ₽"},{"$f":"СведенияОБюджете[[#This Row],[Плановые затраты]]-СведенияОБюджете[[#This Row],[Фактические затраты]]","v":{"v":-15,"d":"-15 ₽"}},{"$f":"СведенияОБюджете[[#This Row],[Фактические затраты]]","v":{"v":55,"d":"55 ₽"}}]
[null,"Вывоз и переработка мусора","Жилье",{"v":25,"d":"25 ₽"},{"v":22,"d":"22 ₽"},{"$f":"СведенияОБюджете[[#This Row],[Плановые затраты]]-СведенияОБюджете[[#This Row],[Фактические затраты]]","v":{"v":3,"d":"3 ₽"}},{"$f":"СведенияОБюджете[[#This Row],[Фактические затраты]]","v":{"v":22,"d":"22 ₽"}}]
[null,"Водоснабжение и канализация","Жилье",{"v":25,"d":"25 ₽"},{"v":26,"d":"26 ₽"},{"$f":"СведенияОБюджете[[#This Row],[Плановые затраты]]-СведенияОБюджете[[#This Row],[Фактические затраты]]","v":{"v":-1,"d":"-1 ₽"}},{"$f":"СведенияОБюджете[[#This Row],[Фактические затраты]]","v":{"v":26,"d":"26 ₽"}}]
[null,"Здоровье","Страхование",{"v":400,"d":"400 ₽"},{"v":400,"d":"400 ₽"},{"$f":"СведенияОБюджете[[#This Row],[Плановые затраты]]-СведенияОБюджете[[#This Row],[Фактические затраты]]","v":{"v":0,"d":"0 ₽"}},{"$f":"СведенияОБюджете[[#This Row],[Фактические затраты]]","v":{"v":400,"d":"400 ₽"}}]
[null,"Дом","Страхование",{"v":400,"d":"400 ₽"},{"v":400,"d":"400 ₽"},{"$f":"СведенияОБюджете[[#This Row],[Плановые затраты]]-СведенияОБюджете[[#This Row],[Фактические затраты]]","v":{"v":0,"d":"0 ₽"}},{"$f":"СведенияОБюджете[[#This Row],[Фактические затраты]]","v":{"v":400,"d":"400 ₽"}}]
[null,"Жизнь","Страхование",{"v":100,"d":"100 ₽"},{"v":100,"d":"100 ₽"},{"$f":"СведенияОБюджете[[#This Row],[Плановые затраты]]-СведенияОБюджете[[#This Row],[Фактические затраты]]","v":{"v":0,"d":"0 ₽"}},{"$f":"СведенияОБюджете[[#This Row],[Фактические затраты]]","v":{"v":100,"d":"100 ₽"}}]
[null,"Кредитная карта 1","Кредиты",{"v":200,"d":"200 ₽"},{"v":200,"d":"200 ₽"},{"$f":"СведенияОБюджете[[#This Row],[Плановые затраты]]-СведенияОБюджете[[#This Row],[Фактические затраты]]","v":{"v":0,"d":"0 ₽"}},{"$f":"СведенияОБюджете[[#This Row],[Фактические затраты]]","v":{"v":200,"d":"200 ₽"}}]
[null,"Кредитная карта 2","Кредиты",null,null,{"$f":"СведенияОБюджете[[#This Row],[Плановые затраты]]-СведенияОБюджете[[#This Row],[Фактические затраты]]","v":{"v":0,"d":"0 ₽"}},{"$f":"СведенияОБюджете[[#This Row],[Фактические затраты]]","v":{"v":0,"d":"0 ₽"}}]
[null,"Кредитная карта 3","Кредиты",null,null,{"$f":"СведенияОБюджете[[#This Row],[Плановые затраты]]-СведенияОБюджете[[#This Row],[Фактические затраты]]","v":{"v":0,"d":"0 ₽"}},{"$f":"СведенияОБюджете[[#This Row],[Фактические затраты]]","v":{"v":0,"d":"0 ₽"}}]
[null,"Личные накопления","Кредиты",null,null,{"$f":"СведенияОБюджете[[#This Row],[Плановые затраты]]-СведенияОБюджете[[#This Row],[Фактические затраты]]","v":{"v":0,"d":"0 ₽"}},{"$f":"СведенияОБюджете[[#This Row],[Фактические затраты]]","v":{"v":0,"d":"0 ₽"}}]
[null,"На учебу","Кредиты",null,null,{"$f":"СведенияОБюджете[[#This Row],[Плановые затраты]]-СведенияОБюджете[[#This Row],[Фактические затраты]]","v":{"v":0,"d":"0 ₽"}},{"$f":"СведенияОБюджете[[#This Row],[Фактические затраты]]","v":{"v":0,"d":"0 ₽"}}]
[null,"Одежда","Предметы личной гигиены",{"v":150,"d":"150 ₽"},{"v":140,"d":"140 ₽"},{"$f":"СведенияОБюджете[[#This Row],[Плановые затраты]]-СведенияОБюджете[[#This Row],[Фактические затраты]]","v":{"v":10,"d":"10 ₽"}},{"$f":"СведенияОБюджете[[#This Row],[Фактические затраты]]","v":{"v":140,"d":"140 ₽"}}]
[null,"Химчистка","Предметы личной гигиены",null,null,{"$f":"СведенияОБюджете[[#This Row],[Плановые затраты]]-СведенияОБюджете[[#This Row],[Фактические затраты]]","v":{"v":0,"d":"0 ₽"}},{"$f":"СведенияОБюджете[[#This Row],[Фактические затраты]]","v":{"v":0,"d":"0 ₽"}}]
[null,"Уход за волосами/ногтями","Предметы личной гигиены",null,null,{"$f":"СведенияОБюджете[[#This Row],[Плановые затраты]]-СведенияОБюджете[[#This Row],[Фактические затраты]]","v":{"v":0,"d":"0 ₽"}},{"$f":"СведенияОБюджете[[#This Row],[Фактические затраты]]","v":{"v":0,"d":"0 ₽"}}]
[null,"Фитнес-клуб","Предметы личной гигиены",null,null,{"$f":"СведенияОБюджете[[#This Row],[Плановые затраты]]-СведенияОБюджете[[#This Row],[Фактические затраты]]","v":{"v":0,"d":"0 ₽"}},{"$f":"СведенияОБюджете[[#This Row],[Фактические затраты]]","v":{"v":0,"d":"0 ₽"}}]
[null,"Медицина","Предметы личной гигиены",null,null,{"$f":"СведенияОБюджете[[#This Row],[Плановые затраты]]-СведенияОБюджете[[#This Row],[Фактические затраты]]","v":{"v":0,"d":"0 ₽"}},{"$f":"СведенияОБюджете[[#This Row],[Фактические затраты]]","v":{"v":0,"d":"0 ₽"}}]
[null,"Еда","Домашние животные",{"v":150,"d":"150 ₽"},{"v":75,"d":"75 ₽"},{"$f":"СведенияОБюджете[[#This Row],[Плановые затраты]]-СведенияОБюджете[[#This Row],[Фактические затраты]]","v":{"v":75,"d":"75 ₽"}},{"$f":"СведенияОБюджете[[#This Row],[Фактические затраты]]","v":{"v":75,"d":"75 ₽"}}]
[null,"Уход","Домашние животные",{"v":20,"d":"20 ₽"},{"v":25,"d":"25 ₽"},{"$f":"СведенияОБюджете[[#This Row],[Плановые затраты]]-СведенияОБюджете[[#This Row],[Фактические затраты]]","v":{"v":-5,"d":"-5 ₽"}},{"$f":"СведенияОБюджете[[#This Row],[Фактические затраты]]","v":{"v":25,"d":"25 ₽"}}]
[null,"Медицина","Домашние животные",null,null,{"$f":"СведенияОБюджете[[#This Row],[Плановые затраты]]-СведенияОБюджете[[#This Row],[Фактические затраты]]","v":{"v":0,"d":"0 ₽"}},{"$f":"СведенияОБюджете[[#This Row],[Фактические затраты]]","v":{"v":0,"d":"0 ₽"}}]
[null,"Игрушки","Домашние животные",null,null,{"$f":"СведенияОБюджете[[#This Row],[Плановые затраты]]-СведенияОБюджете[[#This Row],[Фактические затраты]]","v":{"v":0,"d":"0 ₽"}},{"$f":"СведенияОБюджете[[#This Row],[Фактические затраты]]","v":{"v":0,"d":"0 ₽"}}]
[null,"Инвестиционный счет","Сбережения и инвестиции",{"v":200,"d":"200 ₽"},{"v":200,"d":"200 ₽"},{"$f":"СведенияОБюджете[[#This Row],[Плановые затраты]]-СведенияОБюджете[[#This Row],[Фактические затраты]]","v":{"v":0,"d":"0 ₽"}},{"$f":"СведенияОБюджете[[#This Row],[Фактические затраты]]","v":{"v":200,"d":"200 ₽"}}]
[null,"Пенсионный счет","Сбережения и инвестиции",null,null,{"$f":"СведенияОБюджете[[#This Row],[Плановые затраты]]-СведенияОБюджете[[#This Row],[Фактические затраты]]","v":{"v":0,"d":"0 ₽"}},{"$f":"СведенияОБюджете[[#This Row],[Фактические затраты]]","v":{"v":0,"d":"0 ₽"}}]
[null,"Федеральные","Налоги",{"v":300,"d":"300 ₽"},{"v":300,"d":"300 ₽"},{"$f":"СведенияОБюджете[[#This Row],[Плановые затраты]]-СведенияОБюджете[[#This Row],[Фактические затраты]]","v":{"v":0,"d":"0 ₽"}},{"$f":"СведенияОБюджете[[#This Row],[Фактические затраты]]","v":{"v":300,"d":"300 ₽"}}]
[null,"Местные","Налоги",null,null,{"$f":"СведенияОБюджете[[#This Row],[Плановые затраты]]-СведенияОБюджете[[#This Row],[Фактические затраты]]","v":{"v":0,"d":"0 ₽"}},{"$f":"СведенияОБюджете[[#This Row],[Фактические затраты]]","v":{"v":0,"d":"0 ₽"}}]
[null,"Региональные","Налоги",null,null,{"$f":"СведенияОБюджете[[#This Row],[Плановые затраты]]-СведенияОБюджете[[#This Row],[Фактические затраты]]","v":{"v":0,"d":"0 ₽"}},{"$f":"СведенияОБюджете[[#This Row],[Фактические затраты]]","v":{"v":0,"d":"0 ₽"}}]
[null,"Проезд на автобусе/такси","Транспорт",{"v":100,"d":"100 ₽"},{"v":150,"d":"150 ₽"},{"$f":"СведенияОБюджете[[#This Row],[Плановые затраты]]-СведенияОБюджете[[#This Row],[Фактические затраты]]","v":{"v":-50,"d":"-50 ₽"}},{"$f":"СведенияОБюджете[[#This Row],[Фактические затраты]]","v":{"v":150,"d":"150 ₽"}}]
[null,"Топливо","Транспорт",{"v":450,"d":"450 ₽"},{"v":400,"d":"400 ₽"},{"$f":"СведенияОБюджете[[#This Row],[Плановые затраты]]-СведенияОБюджете[[#This Row],[Фактические затраты]]","v":{"v":50,"d":"50 ₽"}},{"$f":"СведенияОБюджете[[#This Row],[Фактические затраты]]","v":{"v":400,"d":"400 ₽"}}]
[null,"Страхование","Транспорт",{"v":300,"d":"300 ₽"},{"v":300,"d":"300 ₽"},{"$f":"СведенияОБюджете[[#This Row],[Плановые затраты]]-СведенияОБюджете[[#This Row],[Фактические затраты]]","v":{"v":0,"d":"0 ₽"}},{"$f":"СведенияОБюджете[[#This Row],[Фактические затраты]]","v":{"v":300,"d":"300 ₽"}}]
[null,"Лицензирование ","Транспорт",{"v":25,"d":"25 ₽"},{"v":25,"d":"25 ₽"},{"$f":"СведенияОБюджете[[#This Row],[Плановые затраты]]-СведенияОБюджете[[#This Row],[Фактические затраты]]","v":{"v":0,"d":"0 ₽"}},{"$f":"СведенияОБюджете[[#This Row],[Фактические затраты]]","v":{"v":25,"d":"25 ₽"}}]
[null,"Обслуживание","Транспорт",{"v":100,"d":"100 ₽"},{"v":50,"d":"50 ₽"},{"$f":"СведенияОБюджете[[#This Row],[Плановые затраты]]-СведенияОБюджете[[#This Row],[Фактические затраты]]","v":{"v":50,"d":"50 ₽"}},{"$f":"СведенияОБюджете[[#This Row],[Фактические затраты]]","v":{"v":50,"d":"50 ₽"}}]
[null,"Плата за парковку","Транспорт",null,null,{"$f":"СведенияОБюджете[[#This Row],[Плановые затраты]]-СведенияОБюджете[[#This Row],[Фактические затраты]]","v":{"v":0,"d":"0 ₽"}},{"$f":"СведенияОБюджете[[#This Row],[Фактические затраты]]","v":{"v":0,"d":"0 ₽"}}]
[null,"Расходы на автомобиль","Транспорт",{"v":450,"d":"450 ₽"},{"v":450,"d":"450 ₽"},{"$f":"СведенияОБюджете[[#This Row],[Плановые затраты]]-СведенияОБюджете[[#This Row],[Фактические затраты]]","v":{"v":0,"d":"0 ₽"}},{"$f":"СведенияОБюджете[[#This Row],[Фактические затраты]]","v":{"v":450,"d":"450 ₽"}}]
[null,"Итог",null,{"$f":"SUBTOTAL(109,СведенияОБюджете[Плановые затраты])","v":{"v":7915,"d":"7,915 ₽"}},{"$f":"SUBTOTAL(109,СведенияОБюджете[Фактические затраты])","v":{"v":7860,"d":"7,860 ₽"}},{"$f":"SUBTOTAL(109,СведенияОБюджете[Разница])","v":{"v":55,"d":"55 ₽"}}]

{"sheet":"Дополнительные данные","index":2,"n_rows":15,"n_cols":5,"rows_kept":15}
[null,"Сводная таблица для диаграммы «Обзор бюджета»",null,null,"Список подстановки для категорий бюджетных сведений"]
[null,"Категория","Затраты ",null,"Категории бюджета для подстановки"]
[null,"Дети",140,null,"Дети"]
[null,"Домашние животные",100,null,"Развлечения"]
[null,"Еда",1320,null,"Еда"]
[null,"Жилье",2702,null,"Подарки и благотворительность"]
[null,"Кредиты",200,null,"Жилье"]
[null,"Налоги",300,null,"Страхование"]
[null,"Подарки и благотворительность",125,null,"Кредиты"]
[null,"Предметы личной гигиены",140,null,"Предметы личной гигиены"]
[null,"Развлечения",358,null,"Домашние животные"]
[null,"Сбережения и инвестиции",200,null,"Сбережения и инвестиции"]
[null,"Страхование",900,null,"Налоги"]
[null,"Транспорт",1375,null,"Транспорт"]
[null,"Общий итог",7860]